bitfinex-derivatives/quotes_ETHF0:USTF0_20250917
["timestamp","ask_amount","ask_price","bid_price","bid_amount"]
[1758116801726,0.1251,4494.0,4493.2,3.2078]
[1758116801927,0.1251,4493.5,4492.7,3.4368]
[1758116802126,0.1251,4493.5,4492.7,3.7479]
[1758116802322,3.5059,4493.7,4492.8,0.3111]
[1758116802932,0.1251,4493.0,4492.7,3.2078]
[1758116803129,0.1251,4493.5,4492.8,0.3111]
[1758116803440,0.4232,4493.5,4492.8,0.3111]
[1758116803733,0.4232,4493.5,4492.7,3.2078]
[1758116803734,0.2981,4493.4,4492.7,3.2078]
[1758116804332,0.2981,4492.9,4492.7,3.2078]
[1758116804631,0.1251,4493.0,4492.7,3.2078]
[1758116804827,0.2981,4492.9,4492.7,3.2078]
[1758116805034,0.2981,4492.9,4492.4,0.23]
[1758116805234,0.4232,4493.0,4492.4,0.23]
[1758116805629,0.4232,4493.0,4492.2,3.5189]
[1758116805830,0.2981,4492.9,4492.5,0.23]
[1758116806230,0.1251,4493.0,4492.6,0.3111]
[1758116806431,0.1251,4493.0,4492.5,0.5411]
[1758116806627,0.2981,4492.9,4492.6,0.3111]
[1758116806931,0.1251,4493.5,4492.6,0.3111]
[1758116806932,0.2981,4493.3,4492.6,0.3111]
[1758116807142,0.2981,4493.3,4492.8,3.2078]
[1758116807337,0.1251,4493.5,4492.9,0.3111]
[1758116807640,3.2078,4493.7,4493.1,0.3111]
[1758116807836,3.5059,4493.7,4493.1,0.3111]
[1758116808937,0.2981,4493.9,4493.3,3.2078]
[1758116810329,0.1251,4493.5,4493.0,0.0222]
[1758116810530,0.2981,4493.4,4493.0,0.0222]
[1758116810742,0.1251,4493.5,4493.0,0.0222]
[1758116810934,0.2981,4493.9,4493.3,3.2078]
[1758116811442,0.2981,4494.5,4493.9,0.3111]
[1758116811651,0.2981,4494.5,4494.0,0.3111]
[1758116812238,0.2981,4494.5,4493.8,3.2078]
[1758116812239,0.1251,4494.5,4493.8,3.2078]
[1758116812538,0.2981,4494.0,4493.8,3.2078]
[1758116812740,0.1251,4494.5,4493.8,3.2078]
[1758116812945,0.2981,4494.0,4493.8,3.2078]
[1758116813334,0.1251,4494.5,4493.8,3.2078]
[1758116813540,0.2981,4494.0,4493.8,3.2078]
[1758116813938,0.2981,4493.9,4493.8,3.2078]
[1758116814138,0.2981,4493.9,4493.2,0.23]
[1758116814443,3.5235,4494.4,4493.8,0.3194]
[1758116814742,3.5235,4494.4,4493.6,3.2078]
[1758116814743,0.3157,4494.4,4493.7,0.3194]
[1758116814946,0.3157,4494.0,4493.9,0.3194]
[1758116815148,0.3157,4494.0,4493.7,0.5494]
[1758116815336,0.3157,4494.0,4493.8,0.3194]
[1758116815536,0.3157,4494.0,4493.7,0.23]
[1758116815753,0.3157,4494.0,4493.8,0.3194]
[1758116816044,0.3157,4494.6,4493.8,0.3194]
[1758116816439,3.2078,4494.9,4493.8,0.3194]
[1758116816639,0.3157,4494.4,4493.7,0.23]
[1758116817248,0.3157,4494.4,4493.8,0.3194]
[1758116817445,0.3157,4494.4,4493.7,0.23]
[1758116817841,3.2078,4494.9,4494.0,0.1133]
[1758116818047,3.2078,4494.9,4494.0,0.4327]
[1758116818245,0.3377,4494.1,4494.0,0.3194]
[1758116819248,0.022,4494.1,4494.0,0.3194]
[1758116820551,3.2078,4495.4,4494.1,0.3184]
[1758116820754,0.3157,4495.3,4494.9,0.3184]
[1758116820954,3.2078,4495.4,4494.8,3.4378]
[1758116821245,3.2078,4495.4,4495.0,0.1136]
[1758116821649,0.4326,4496.0,4495.3,3.2078]
[1758116821848,0.54609391,4495.9,4495.3,3.2078]
[1758116822048,0.4326,4496.0,4495.3,3.2078]
[1758116822651,0.3157,4495.9,4495.3,3.2078]
[1758116822855,0.3157,4495.9,4495.4,0.3184]
[1758116823156,0.3469,4496.5,4495.8,3.5262]
[1758116823157,0.3157,4496.4,4495.8,3.5262]
[1758116823343,0.1169,4496.5,4496.3,3.2078]
[1758116823547,0.4326,4497.0,4496.4,0.3184]
[1758116823851,0.3157,4496.9,4496.4,0.23]
[1758116824053,0.1169,4497.0,4496.4,0.23]
[1758116824252,0.3157,4496.9,4496.4,0.23]
[1758116825150,0.1169,4497.0,4496.4,0.23]
[1758116825348,0.3157,4496.9,4496.4,0.23]
[1758116825551,0.4326,4497.0,4496.4,0.23]
[1758116826753,0.436,4496.5,4496.4,0.23]
[1758116827158,0.1169,4497.0,4496.4,0.533]
[1758116827360,0.4262,4497.0,4496.4,0.23]
[1758116827550,0.3093,4497.0,4496.8,3.2078]
[1758116827751,0.3093,4497.4,4496.9,0.303]
[1758116828156,0.1169,4497.5,4496.8,3.2078]
[1758116828350,0.3093,4497.4,4496.8,3.2078]
[1758116828551,0.3093,4498.1,4497.4,0.303]
[1758116828749,0.3093,4498.1,4497.4,0.23]
[1758116828956,0.3093,4498.4,4497.9,3.2078]
[1758116829250,0.3093,4498.9,4498.1,0.303]
[1758116829453,0.3093,4498.9,4498.5,3.2078]
[1758116829652,0.1267,4499.0,4498.5,3.2078]
[1758116829855,0.3093,4498.9,4498.3,0.23]
[1758116832266,0.3093,4498.9,4498.5,3.2078]
[1758116832471,0.3093,4498.9,4498.6,0.303]
[1758116832670,0.3093,4498.9,4498.5,3.2078]
[1758116833368,0.3093,4499.0,4498.6,0.303]
[1758116833575,0.3093,4498.9,4498.7,0.229]
[1758116833761,0.3093,4498.9,4498.1,0.303]
[1758116833762,0.1267,4499.0,4498.1,0.303]
[1758116833968,0.3093,4498.4,4497.7,3.2078]
[1758116834168,0.3093,4498.4,4497.8,0.229]
[1758116834470,0.1267,4498.5,4497.9,0.532]
[1758116834671,0.1267,4499.0,4498.4,0.303]
[1758116834868,0.1267,4499.0,4498.4,0.532]
[1758116835070,0.022,4499.1,4498.6,0.303]
[1758116835264,0.022,4499.1,4498.5,0.0916]
[1758116835571,0.45,4499.4,4499.0,0.1133]
[1758116835770,0.45,4499.4,4499.3,3.5108]
[1758116836376,0.45,4499.4,4499.3,7.5108]
[1758116836576,0.3093,4500.3,4499.3,7.5108]
[1758116836776,0.3093,4500.3,4499.3,3.5108]
[1758116836968,3.2078,4500.4,4499.3,3.5108]
[1758116837171,0.3093,4500.3,4499.4,0.23]
[1758116837371,0.3093,4500.3,4499.3,3.2078]
[1758116837573,0.3093,4500.3,4499.4,0.23]
[1758116838479,0.3093,4499.8,4499.3,3.2078]
[1758116838673,0.3093,4499.4,4499.3,3.2078]
[1758116838879,0.3093,4499.4,4499.1,0.23]
[1758116839176,0.1267,4499.5,4498.5,3.2078]
[1758116839480,0.3093,4499.4,4498.6,0.229]
[1758116839776,0.3093,4499.3,4498.5,3.2078]
[1758116840076,0.1267,4499.0,4498.5,3.2078]
[1758116840474,0.3093,4498.9,4498.5,3.2078]
[1758116840674,0.1267,4499.0,4498.5,3.2078]
[1758116840974,3.5171,4499.4,4498.6,0.303]
[1758116841174,3.5171,4499.4,4498.7,0.23]
[1758116841373,0.3093,4499.4,4498.7,0.23]
[1758116841577,0.3093,4499.4,4498.8,0.303]
[1758116842076,0.3093,4499.9,4499.3,0.303]
[1758116842982,0.3093,4500.4,4499.8,3.2078]
[1758116843279,0.3093,4500.4,4499.9,0.23]
[1758116843779,0.3093,4499.9,4499.4,0.23]
[1758116843980,0.1267,4500.0,4499.5,0.23]
[1758116844181,0.3093,4499.9,4499.5,0.23]
[1758116844379,0.1267,4500.0,4499.3,3.2078]
[1758116844686,0.1267,4500.0,4499.3,3.4378]
[1758116844687,0.3093,4499.9,4499.3,3.4378]
[1758116845071,0.3093,4499.9,4499.8,3.2078]
[1758116845277,0.3093,4500.4,4499.8,3.5108]
[1758116845984,0.3093,4499.9,4499.8,3.2078]
[1758116846183,0.3093,4499.9,4499.3,3.2078]
[1758116846481,0.3093,4499.9,4499.3,3.4378]
[1758116848380,0.1267,4500.0,4499.3,3.2078]
[1758116848381,0.1267,4499.5,4499.3,3.2078]
[1758116848587,0.3093,4499.4,4498.6,3.2078]
[1758116848887,0.3093,4499.2,4498.6,3.4378]
[1758116849482,0.3093,4498.9,4498.6,3.4378]
[1758116849685,0.54246537,4498.8,4498.6,3.4378]
[1758116849891,0.3093,4498.9,4498.6,3.4378]
[1758116850077,0.3093,4498.7,4498.6,3.4378]
[1758116850284,0.3093,4498.7,4498.6,3.2078]
[1758116850580,0.85180575,4498.7,4498.6,3.2078]
[1758116850982,0.3093,4498.7,4498.6,3.2078]
[1758116851386,0.85224192,4498.7,4498.6,3.2078]
[1758116852485,0.3093,4498.4,4498.1,0.55845]
[1758116852693,0.3093,4498.2,4498.1,0.55845]
[1758116852991,0.54294192,4498.2,4498.1,0.86145]
[1758116853182,0.54294192,4498.2,4498.1,0.55845]
[1758116853385,0.54383683,4498.2,4498.1,0.55845]
[1758116853581,0.85313683,4498.2,4498.1,0.86145]
[1758116853792,0.85313683,4498.2,4498.1,0.55845]
[1758116855991,4.85313683,4498.2,4498.1,0.55845]
[1758116858186,0.1188,4498.0,4497.2,3.2078]
[1758116858387,0.3013,4497.4,4496.8,0.2947]
[1758116858590,0.3013,4497.2,4496.6,3.2078]
[1758116858793,0.3013,4497.0,4496.6,3.2078]
[1758116858985,0.3013,4496.8,4496.6,3.2078]
[1758116859182,0.54383683,4496.7,4496.6,3.5025]
[1758116859387,0.54383683,4496.7,4496.6,3.2078]
[1758116859585,0.54393336,4497.0,4496.6,3.2078]
[1758116859794,0.54393336,4496.9,4496.4,0.23]
[1758116859987,0.84523336,4496.8,4496.4,0.23]
[1758116860187,0.54393336,4496.7,4496.6,0.2947]
[1758116862187,0.3013,4497.1,4496.6,0.2947]
[1758116862390,0.54337001,4497.0,4496.6,0.2947]
[1758116862584,0.54337001,4496.9,4496.6,0.2947]
[1758116862788,3.2078,4497.3,4496.6,0.2947]
[1758116862987,0.54315771,4497.2,4496.6,0.2947]
[1758116863184,0.54315771,4497.1,4496.6,0.2947]
[1758116863388,3.2078,4497.3,4496.6,0.2947]
[1758116863588,0.54297057,4497.2,4496.6,0.2947]
[1758116863789,0.54297057,4497.1,4496.5,0.1164]
[1758116863987,0.3013,4497.2,4496.5,0.1164]
[1758116864188,0.3013,4496.9,4496.1,3.2078]
[1758116864389,0.3013,4496.7,4496.1,3.2078]
[1758116865591,0.3013,4496.7,4495.8,0.0222]
[1758116866194,0.3013,4496.7,4495.9,0.2947]
[1758116866701,0.3013,4496.7,4496.0,0.1164]
[1758116866996,3.2078,4496.8,4496.1,0.2947]
[1758116867196,0.3013,4497.1,4496.2,0.2947]
[1758116867497,0.23,4497.3,4496.2,0.2947]
[1758116867695,3.2078,4497.4,4496.2,0.2947]
[1758116868796,0.3013,4497.3,4496.2,0.2947]
[1758116869697,0.3013,4497.3,4496.9,0.2947]
[1758116869897,0.3013,4497.3,4496.8,3.2078]
[1758116870304,0.3013,4497.3,4496.9,0.2947]
[1758116870694,0.23,4497.5,4497.1,0.2947]
[1758116870894,0.23,4497.5,4497.0,0.1164]
[1758116871090,0.3013,4497.5,4497.1,0.2947]
[1758116871301,0.4201,4498.0,4497.1,0.2947]
[1758116871602,3.2078,4498.2,4497.6,0.2947]
[1758116872001,0.3013,4498.4,4497.8,3.2078]
[1758116872301,0.3013,4498.5,4498.1,0.2947]
[1758116872494,0.3013,4498.5,4498.0,0.1164]
[1758116872695,0.229,4498.8,4498.1,0.2947]
[1758116872898,0.3013,4498.7,4498.1,0.2947]
[1758116874396,0.299,4499.1,4498.1,0.2947]
[1758116874699,0.299,4498.9,4498.1,0.2947]
[1758116875401,0.299,4498.9,4498.3,3.2078]
[1758116875699,0.299,4498.9,4498.4,0.3061]
[1758116875901,0.299,4499.1,4498.4,0.3061]
[1758116876094,0.299,4499.1,4498.5,0.1264]
[1758116876294,0.1188,4499.5,4498.8,3.2078]
[1758116876596,0.1188,4499.5,4498.9,0.3061]
[1758116876897,0.4251,4499.4,4499.3,0.1946]
[1758116877103,0.7241,4499.4,4499.3,0.5007]
[1758116877898,0.7241,4499.4,4499.3,0.6974]
[1758116878102,3.7191,4499.9,4499.8,0.1946]
[1758116878400,3.9319,4499.9,4499.8,0.6974]
[1758116878601,0.2123,4499.5,4499.4,0.5007]
[1758116878902,0.7241,4499.5,4499.4,0.5007]
[1758116879498,0.2123,4499.5,4499.4,0.6974]
[1758116879703,0.4214,4500.0,4499.4,0.6974]
[1758116879999,0.5113,4500.0,4499.9,0.6974]
[1758116880703,0.5113,4500.0,4499.3,3.2078]
[1758116880704,0.8465,4500.0,4499.4,0.3061]
[1758116881104,0.4251,4498.9,4498.8,3.4024]
[1758116881299,0.4251,4498.9,4498.6,0.229]
[1758116881505,0.7241,4498.7,4498.6,0.4236]
[1758116881708,0.7241,4498.7,4498.6,0.9264]
[1758116881898,0.4251,4498.7,4498.6,0.9264]
[1758116882094,0.7241,4498.7,4498.6,0.9264]
[1758116882899,0.299,4499.4,4498.7,0.3061]
[1758116883407,0.34467001,4499.5,4497.5,0.1264]
[1758116883408,0.299,4498.7,4497.5,0.1264]
[1758116883600,0.299,4498.7,4497.8,3.9052]
[1758116883601,0.4251,4497.9,4497.8,3.9052]
[1758116883805,0.299,4498.6,4498.3,0.3061]
[1758116884107,3.2078,4498.7,4498.1,0.3061]
[1758116884108,3.9319,4498.7,4498.1,0.3061]
[1758116884311,3.5068,4498.7,4498.1,0.3061]
[1758116884508,0.299,4498.7,4498.1,0.3061]
[1758116884696,0.299,4498.7,4498.1,0.60133]
[1758116884895,0.299,4498.7,4498.1,0.83033]
[1758116885100,0.299,4498.9,4498.2,0.3061]
[1758116885706,0.299,4498.9,4498.5,0.1264]
[1758116886103,3.4368,4499.4,4498.6,0.3061]
[1758116886303,0.52127001,4499.3,4498.6,0.3061]
[1758116886708,0.299,4499.3,4498.6,0.3061]
[1758116886914,0.728,4499.3,4499.2,0.5158]
[1758116887606,0.728,4499.3,4498.7,0.3168]
[1758116888505,0.728,4499.3,4499.2,0.7224]
[1758116889108,0.728,4499.3,4498.7,0.3168]
[1758116889699,0.728,4499.3,4499.2,0.7224]
[1758116890104,3.2078,4499.4,4499.2,0.4056]
[1758116890299,3.5287,4499.4,4499.3,0.5158]
[1758116890508,3.9577,4499.4,4499.3,0.5158]
[1758116890905,3.9577,4499.4,4498.8,0.3168]
[1758116892807,0.2141,4498.5,4498.4,3.4068]
[1758116893011,0.535,4498.5,4498.4,3.9302]
[1758116893710,0.7499,4498.5,4498.4,3.9302]
[1758116893910,0.7499,4498.5,4498.4,3.6134]
[1758116894306,0.7499,4498.5,4498.4,3.9302]
[1758116895008,0.3209,4498.9,4498.4,3.9302]
[1758116895213,0.8757,4499.0,4498.9,0.5158]
[1758116895512,0.5548,4499.0,4498.5,0.3168]
[1758116895702,0.2141,4498.6,4498.5,0.199]
[1758116895901,0.3209,4499.3,4499.0,0.3168]
[1758116896209,0.1258,4501.0,4499.2,0.4056]
[1758116896210,0.3209,4499.7,4499.2,0.4056]
[1758116896413,0.535,4499.7,4499.6,0.7224]
[1758116896907,3.2078,4500.4,4499.7,0.3168]
[1758116897107,0.7499,4500.5,4500.4,0.5158]
[1758116897312,0.8757,4500.5,4500.1,3.2078]
[1758116897514,0.5548,4500.5,4500.4,0.199]
[1758116897813,0.429,4500.5,4500.4,0.7224]
[1758116898113,0.7499,4500.5,4500.4,0.7224]
[1758116898309,0.8757,4500.5,4499.9,0.3168]
[1758116898506,0.3209,4500.4,4499.6,3.2078]
[1758116898702,0.3209,4500.4,4499.6,3.4068]
[1758116898703,0.7499,4499.7,4499.6,3.4068]
[1758116898903,0.7499,4499.7,4499.6,3.9302]
[1758116899609,0.3209,4500.3,4500.2,0.199]
[1758116899803,3.5287,4500.9,4500.3,0.3168]
[1758116900012,3.5287,4500.9,4500.8,0.3168]
[1758116900209,0.3209,4500.9,4500.8,0.3168]
[1758116900609,0.3209,4501.3,4500.6,3.5246]
[1758116900811,0.3209,4501.3,4500.7,0.3168]
[1758116902906,3.2078,4501.5,4500.7,0.3168]
[1758116903107,0.3209,4501.7,4500.7,0.3168]
[1758116903310,0.3209,4502.3,4501.2,0.3168]
[1758116903714,0.3209,4502.4,4501.2,0.5458]
[1758116903913,0.3209,4502.3,4501.2,0.5458]
[1758116904112,0.3209,4502.4,4501.2,0.5458]
[1758116904317,3.2078,4502.1,4501.3,0.3168]
[1758116904513,0.4467,4502.0,4501.3,0.3168]
[1758116906217,0.3209,4502.0,4501.3,0.3168]
[1758116906512,0.3209,4502.0,4501.7,0.3168]
[1758116907518,0.3548,4502.5,4501.7,0.3168]
[1758116907717,0.3209,4502.4,4501.7,0.3168]
[1758116908216,0.3209,4501.9,4501.2,0.229]
[1758116909418,0.3209,4501.9,4501.3,0.3168]
[1758116909616,3.2078,4502.1,4501.3,0.3168]
[1758116909818,3.2078,4502.9,4502.1,0.3168]
[1758116910023,3.5287,4502.9,4502.1,0.3168]
[1758116910210,3.5287,4502.9,4502.1,0.5389]
[1758116910516,0.3209,4502.9,4502.2,0.2221]
[1758116910720,0.3209,4502.9,4502.1,0.3168]
[1758116910920,0.3209,4502.9,4502.1,0.5389]
[1758116911317,0.3209,4502.9,4502.1,0.2221]
[1758116911517,3.3336,4503.5,4502.6,0.3168]
[1758116911724,0.3209,4503.3,4502.6,0.3168]
[1758116912120,3.2078,4503.5,4502.7,0.3168]
[1758116912325,3.2078,4503.5,4502.8,0.3168]
[1758116913421,0.3209,4503.4,4502.8,0.3168]
[1758116913624,0.3209,4503.4,4502.8,0.5458]
[1758116914626,0.3209,4503.4,4502.8,0.229]
[1758116914830,0.1258,4503.5,4502.8,0.229]
[1758116915017,0.4467,4503.5,4503.0,0.1201]
[1758116915326,0.3209,4503.9,4503.1,0.3168]
[1758116915527,0.54295,4503.9,4503.1,0.3168]
[1758116915722,0.3209,4503.9,4503.1,0.3168]
[1758116916319,0.3209,4503.9,4503.3,0.3168]
[1758116916518,3.2298,4504.1,4503.3,0.3168]
[1758116917418,3.2298,4504.1,4503.7,3.2078]
[1758116917419,0.022,4504.1,4503.7,3.2078]
[1758116917620,0.32,4504.1,4503.8,0.3106]
[1758116917817,0.298,4504.0,4503.9,0.3106]
[1758116918422,0.298,4504.0,4503.4,0.229]
[1758116918722,0.022,4504.1,4503.5,0.229]
[1758116919524,0.022,4504.1,4503.5,0.3559]
[1758116919727,0.32,4504.1,4503.6,0.3106]
[1758116919918,0.7278,4504.1,4504.0,0.2014]
[1758116922527,3.326,4505.0,4504.3,3.2078]
[1758116922829,3.326,4505.0,4504.4,0.229]
[1758116922830,0.298,4504.9,4504.4,0.229]
[1758116923218,3.326,4505.0,4504.3,3.2078]
[1758116923425,3.54799,4505.0,4504.3,3.2078]
[1758116923729,0.298,4504.9,4504.3,3.2078]
[1758116924432,0.7058,4505.0,4504.9,0.717]
[1758116924628,1.24413854,4505.0,4504.9,0.4064]
[1758116924828,1.24413854,4505.0,4504.9,0.717]
[1758116925133,1.24436935,4505.0,4504.9,0.717]
[1758116925335,0.298,4505.7,4505.1,0.3106]
[1758116925533,0.298,4505.5,4505.1,0.3106]
[1758116925832,0.2032,4505.2,4505.1,0.717]
[1758116926030,0.74180971,4505.2,4505.1,0.717]
[1758116926232,0.2032,4505.2,4505.1,0.717]
[1758116927128,0.74202286,4505.2,4505.1,0.717]
[1758116927328,0.5012,4505.2,4505.1,0.717]
[1758116927630,0.5012,4505.2,4505.1,0.2014]
[1758116927631,0.7058,4505.2,4505.1,0.2014]
[1758116928232,1.24471715,4505.2,4505.1,0.2014]
[1758116928629,1.24471715,4505.2,4504.8,3.4368]
[1758116928828,0.1182,4505.5,4504.8,3.7474]
[1758116929031,0.5012,4504.9,4504.8,3.9488]
[1758116929429,0.7058,4504.9,4504.8,3.4368]
[1758116929634,0.2032,4504.9,4504.8,4.1538]
[1758116929834,0.7058,4504.9,4504.8,4.1538]
[1758116930033,0.7058,4504.9,4504.8,3.9248]
[1758116930726,0.7058,4504.9,4504.8,3.4092]
[1758116930928,0.2032,4504.0,4503.9,0.717]
[1758116931133,0.2032,4504.0,4503.9,0.946]
[1758116931533,0.2032,4504.0,4503.9,0.717]
[1758116931736,0.7058,4504.4,4504.3,0.2014]
[1758116931936,1.24521695,4504.4,4504.3,0.4304]
[1758116932132,1.24521695,4504.4,4504.0,0.3106]
[1758116932337,0.7058,4503.9,4503.8,3.7198]
[1758116932545,0.7058,4503.9,4503.8,3.9248]
[1758116933846,0.7058,4503.9,4503.8,3.8432]
[1758116934048,0.7058,4503.9,4503.8,3.6142]
[1758116934257,0.7424,4503.8,4503.7,0.229]
[1758116934748,0.4245,4503.4,4503.3,3.4368]
[1758116934948,0.96446413,4503.4,4502.7,3.5129]
[1758116935157,0.7424,4502.8,4502.7,3.7103]
[1758116935347,0.7424,4502.8,4502.7,3.9393]
[1758116935748,0.7424,4502.8,4502.7,3.4052]
[1758116935949,1.2825214,4502.8,4502.7,3.4052]
[1758116936152,1.28271944,4502.8,4502.7,3.4052]
[1758116936654,1.28271944,4502.8,4502.7,3.7103]
[1758116936957,1.28271944,4502.8,4502.7,3.9132]
[1758116938755,0.96481944,4502.8,4502.7,3.9132]
[1758116939149,0.75261944,4502.8,4502.7,3.9132]
[1758116939751,0.54031944,4502.8,4502.7,3.9132]
[1758116941454,0.54031944,4502.8,4502.7,4.1422]
[1758116942252,3.2078,4503.9,4503.6,0.4003]
[1758116942460,0.54126519,4503.8,4503.7,0.7054]
[1758116943350,0.54126519,4503.8,4503.6,0.229]
[1758116943351,3.8639,4505.0,4504.9,0.1974]
[1758116943548,0.2123,4504.5,4504.4,0.7054]
[1758116943754,0.7424,4504.5,4504.4,0.7054]
[1758116943956,1.28388509,4504.5,4504.4,0.7054]
[1758116944152,0.2123,4503.9,4503.8,0.1974]
[1758116944455,0.7424,4503.4,4503.3,3.4052]
[1758116944655,0.7424,4503.4,4503.3,3.9132]
[1758116944955,0.7424,4502.9,4502.8,3.4052]
[1758116945161,0.7424,4502.9,4502.8,3.9393]
[1758116945658,0.7424,4502.9,4502.8,0.9344]
[1758116946055,0.3179,4502.8,4502.5,0.2512]
[1758116946262,0.5302,4502.6,4502.5,0.7537]
[1758116946453,0.2123,4502.6,4502.5,0.9566]
[1758116946857,0.5317,4503.0,4502.9,0.7003]
[1758116947059,0.5414656,4503.3,4503.2,0.4088]
[1758116947264,0.54141112,4503.3,4503.2,0.4088]
[1758116947862,0.75521112,4503.3,4503.2,0.7003]
[1758116948063,1.04611112,4503.3,4503.2,0.7003]
[1758116949062,0.75521112,4503.3,4503.2,0.7003]
[1758116949358,0.2138,4503.3,4503.2,0.7003]
[1758116949549,3.2078,4503.9,4503.6,0.4088]
[1758116949754,0.54111023,4503.8,4503.7,0.7003]
[1758116949954,0.1191,4504.5,4503.8,3.2078]
[1758116950261,0.1191,4504.5,4504.4,3.2078]
[1758116950457,0.1191,4504.5,4504.4,3.4388]
[1758116950859,0.1191,4504.5,4504.4,3.2078]
[1758116951058,0.1191,4504.5,4504.4,7.6608]
[1758116951854,0.1191,4505.5,4504.5,0.39942]
[1758116952061,0.41,4505.0,4504.9,3.2078]
[1758116952361,0.41,4505.0,4504.9,3.4388]
[1758116952558,0.1191,4505.5,4504.9,7.4388]
[1758116952762,0.1191,4505.5,4505.4,3.2078]
[1758116952957,0.1191,4505.5,4505.4,3.4388]
[1758116954564,0.41,4505.5,4505.4,3.4388]
[1758116956265,0.41,4505.5,4505.4,7.4388]
[1758116956468,0.1191,4506.0,4505.4,7.4388]
[1758116956766,0.1191,4506.0,4505.9,3.2078]
[1758116957164,0.1191,4506.0,4505.9,3.4388]
[1758116958467,0.41,4506.0,4505.9,3.4388]
[1758116959067,0.1191,4507.5,4505.9,11.07006705]
[1758116959366,0.41,4507.5,4507.4,3.2078]
[1758116959567,0.41,4507.5,4507.4,3.4468]
[1758116960163,0.41,4507.5,4507.4,3.2078]
[1758116960362,0.41,4507.0,4506.9,3.2078]
[1758116960562,0.41,4507.0,4506.9,3.4468]
[1758116961765,0.41,4507.0,4506.9,3.2078]
[1758116962168,4.41,4507.0,4506.9,3.4458]
[1758116962365,4.41,4507.0,4506.9,3.2078]
[1758116962563,4.41,4507.0,4506.9,3.4458]
[1758116963568,4.41,4507.0,4506.9,3.2078]
[1758116963776,0.1191,4506.5,4506.4,3.2078]
[1758116964069,0.1191,4506.5,4506.4,3.4458]
[1758116964070,0.41,4506.5,4506.4,3.4458]
[1758116964567,0.41,4506.5,4506.4,3.2078]
[1758116964772,0.41,4506.5,4506.4,3.4458]
[1758116965467,0.41,4506.5,4506.4,3.2078]
[1758116965669,4.41,4506.5,4506.4,3.2078]
[1758116965875,4.1191,4506.5,4506.4,0.238]
[1758116966373,4.41,4506.5,4506.4,0.238]
[1758116968175,0.2909,4506.4,4506.3,0.238]
[1758116968572,0.2909,4506.4,4506.1,3.2078]
[1758116968777,0.2909,4506.4,4506.1,3.4458]
[1758116969479,0.1191,4506.5,4506.1,3.4458]
[1758116969779,0.1191,4506.5,4506.1,3.2078]
[1758116970082,0.2909,4506.4,4506.2,0.238]
[1758116970882,0.2909,4506.4,4506.2,0.237]
[1758116971071,0.1191,4506.5,4505.9,0.2915]
[1758116971270,0.1191,4507.0,4506.2,0.2915]
[1758116971271,0.41,4507.0,4506.2,0.2915]
[1758116971575,0.41,4507.0,4506.0,0.3443]
[1758116971576,0.2909,4507.4,4506.7,0.2915]
[1758116971877,0.2909,4507.4,4506.8,0.237]
[1758116975474,0.7157,4507.4,4507.3,0.208]
[1758116976077,0.5047,4507.4,4507.3,0.7003]
[1758116976274,0.3561,4508.0,4507.3,0.7003]
[1758116976275,0.2909,4507.9,4507.3,0.7003]
[1758116976475,0.53457605,4507.8,4507.3,0.7003]
[1758116976681,0.2138,4507.4,4507.3,0.7003]
[1758116976881,0.5157,4507.4,4507.3,0.7003]
[1758116977779,0.3561,4508.0,4507.3,0.7003]
[1758116977981,0.5104,4507.4,4507.3,0.7003]
[1758116978280,1.04501585,4507.4,4507.3,0.7003]
[1758116979189,1.24021585,4507.4,4507.3,0.4088]
[1758116980286,1.24021585,4507.4,4507.3,0.6458]
[1758116980986,1.24021585,4507.4,4507.3,0.444]
[1758116981686,1.24021585,4507.4,4507.3,0.9411]
[1758116981890,1.04501585,4507.4,4507.3,0.9411]
[1758116982082,0.53461585,4507.4,4507.3,0.9411]
[1758116982279,0.53461585,4508.2,4507.3,0.6406]
[1758116982486,1.24021585,4508.2,4508.1,0.2039]
[1758116982990,0.7056,4507.9,4507.8,3.4117]
[1758116983189,1.24021585,4507.9,4507.8,3.8443]
[1758116983390,1.24021585,4507.9,4507.8,4.1448]
[1758116983589,1.04501585,4507.9,4507.8,4.1448]
[1758116984294,1.24021585,4507.9,4507.8,3.8443]
[1758116984690,0.53461585,4507.9,4507.8,4.1448]
[1758116984892,0.53461585,4508.4,4507.8,3.8443]
[1758116985084,0.3019,4508.3,4507.9,0.236]
[1758116985392,0.53461585,4508.2,4508.1,0.4005]
[1758116985591,1.04501585,4508.2,4508.1,0.4005]
[1758116985791,1.04501585,4508.2,4508.1,0.701]
[1758116985987,1.24021585,4508.2,4507.8,3.2078]
[1758116986191,0.1191,4508.5,4507.5,0.0221]
[1758116986192,0.3019,4507.9,4507.5,0.0221]
[1758116986392,0.7056,4507.6,4507.5,0.0221]
[1758116986688,1.24021585,4507.6,4507.5,0.0221]
[1758116987096,1.24021585,4507.6,4507.5,0.4226]
[1758116987594,1.04501585,4507.6,4507.5,0.7231]
[1758116988298,1.04501585,4507.6,4507.5,0.9591]
[1758116988490,0.53461585,4507.6,4507.5,0.9591]
[1758116988695,0.53461585,4507.6,4507.5,1.0664]
[1758116988896,0.53461585,4508.0,4507.5,0.7659]
[1758116989099,0.53461585,4507.9,4507.8,0.4005]